bitfinex/quotes_SOLUSD_20250310
["timestamp","ask_amount","ask_price","bid_price","bid_amount"]
[1741617349960,1.23412814,121.51,121.45,2.0]
[1741617350171,50.42321173,121.48,121.43,2.0]
[1741617350470,0.14216157,121.49,121.41,2.0]
[1741617350761,50.42321173,121.44,121.4,10.237]
[1741617350929,50.42321173,121.44,121.42,2.0]
[1741617351157,50.42321173,121.47,121.43,2.0]
[1741617351358,50.42321173,121.47,121.42,2.0]
[1741617351652,50.42321173,121.45,121.4,52.42321173]
[1741617351956,50.42321173,121.45,121.42,2.0]
[1741617352278,50.42321173,121.45,121.4,52.42321173]
[1741617352473,1.23412814,121.48,121.43,2.0]
[1741617352474,50.42321173,121.46,121.43,2.0]
[1741617352678,50.42321173,121.46,121.4,2.0]
[1741617352984,50.42321173,121.44,121.39,2.0]
[1741617353273,20.0,121.46,121.41,2.0]
[1741617353465,50.42321173,121.43,121.38,2.0]
[1741617353643,50.42321173,121.42,121.38,2.0]
[1741617353847,50.42321173,121.43,121.39,2.0]
[1741617354066,50.42321173,121.42,121.37,52.42321173]
[1741617354247,50.42321173,121.39,121.35,2.0]
[1741617354448,14.38,121.42,121.34,0.03]
[1741617354449,50.42321173,121.37,121.34,0.03]
[1741617355157,50.42321173,121.35,121.34,0.03]
[1741617355344,51.79950144,121.35,121.34,0.03]
[1741617355543,70.4491503,121.35,121.34,0.03]
[1741617355884,0.14216157,121.31,121.23,2.0]
[1741617356051,50.42321173,121.28,121.23,52.42321173]
[1741617356247,14.38,121.31,121.27,50.42321173]
[1741617356449,0.14216157,121.33,121.28,2.0]
[1741617356643,1.23412814,121.33,121.28,2.0]
[1741617356843,0.14216157,121.33,121.29,2.0]
[1741617357047,50.42321173,121.33,121.29,2.0]
[1741617357348,50.42321173,121.3,121.25,2.0]
[1741617357546,50.42321173,121.31,121.28,2.0]
[1741617357746,64.80321173,121.32,121.28,2.0]
[1741617357976,14.38,121.32,121.27,2.0]
[1741617358184,50.42321173,121.3,121.25,52.42321173]
[1741617358348,50.42321173,121.3,121.24,52.42321173]
[1741617358553,14.38,121.32,121.29,2.0]
[1741617358766,64.80321173,121.32,121.26,50.42321173]
[1741617359075,50.42321173,121.29,121.24,52.42321173]
[1741617359290,50.42321173,121.28,121.22,10.2492]
[1741617359450,50.42321173,121.26,121.21,0.03]
[1741617359790,50.42321173,121.29,121.24,2.0]
[1741617359981,50.42321173,121.28,121.24,2.0]
[1741617360157,14.38,121.32,121.27,2.0]
[1741617360351,14.38,121.32,121.29,2.0]
[1741617360547,50.42321173,121.3,121.25,2.0]
[1741617360771,14.38,121.32,121.29,2.0]
[1741617360955,1.23412814,121.35,121.29,2.0]
[1741617361173,1.23412814,121.35,121.28,2.0]
[1741617361376,0.14216157,121.36,121.21,83.76833768]
[1741617361377,8.2399,121.36,121.26,2.0]
[1741617361574,8.2399,121.36,121.25,8.2473]
[1741617361575,50.42321173,121.35,121.32,2.0]
[1741617361762,0.14216157,121.34,121.29,50.42321173]
[1741617361960,50.42321173,121.3,121.25,2.0]
[1741617362161,50.42321173,121.27,121.23,2.0]
[1741617362356,50.42321173,121.26,121.21,2.03]
[1741617362572,50.42321173,121.22,121.21,0.03]
[1741617362777,64.9653733,121.22,121.21,0.03]
[1741617363173,8.2501,121.21,121.17,5.59561075]
[1741617363359,1.23412814,121.23,121.22,2.0]
[1741617363558,51.65733987,121.27,121.22,2.0]
[1741617363761,20.0,121.25,121.19,2.0]
[1741617363985,0.14216157,121.23,121.17,5.59561075]
[1741617364288,15.63412814,121.22,121.17,5.59561075]
[1741617364488,14.4,121.21,121.17,5.59561075]
[1741617364658,217.34808242,121.21,121.17,5.59561075]
[1741617364859,207.8627366,121.21,121.17,5.59561075]
[1741617365085,50.42321173,121.18,121.17,5.59561075]
[1741617365302,58.67531173,121.18,121.17,5.59561075]
[1741617365462,58.67531173,121.18,121.11,2.0]
[1741617365463,79.30571173,121.18,121.07,52.42321173]
[1741617365664,50.42321173,121.08,121.01,2.0]
[1741617365882,50.42321173,121.05,121.01,2.0]
[1741617366088,50.42321173,121.05,121.02,2.0]
[1741617366281,14.4,121.07,121.05,2.0]
[1741617366458,196.46,121.08,121.03,52.42321173]
[1741617366659,14.4,121.11,121.02,50.42321173]
[1741617366865,0.14216157,121.1,120.96,2.0]
[1741617367160,0.14216157,121.1,120.92,97.90366523]
[1741617367161,8.2596,121.07,121.0,52.0]
[1741617367377,8.40116157,121.08,121.0,50.0]
[1741617367586,14.6,121.09,121.06,2.0]
[1741617367793,50.42321173,121.1,121.06,2.0]
[1741617368094,211.2,121.13,121.07,2.0]
[1741617368384,8.2508,121.2,121.13,2.0]
[1741617368568,50.42321173,121.18,121.14,2.0]
[1741617368761,50.42321173,121.17,121.13,2.0]
[1741617368984,196.58,121.22,121.16,2.0]
[1741617369166,58.67191173,121.24,121.2,2.0]
[1741617369360,14.84,121.26,121.19,2.0]
[1741617369361,23.0873,121.26,121.19,2.0]
[1741617369564,50.42321173,121.22,121.18,2.0]
[1741617369777,20.0,121.23,121.11,2.0]
[1741617369984,0.14216157,121.18,121.09,2.0]
[1741617370179,15.02216157,121.18,121.09,2.0]
[1741617370381,15.02216157,121.18,121.08,8.2589]
[1741617370382,0.14216157,121.14,121.08,2.0]
[1741617370577,14.88,121.18,121.02,2.0]
[1741617370578,5.57258688,121.12,121.02,2.0]
[1741617370779,5.57258688,121.12,121.11,50.42321173]
[1741617370995,11.14517376,121.19,121.14,20.0]
[1741617371172,117.02432453,121.23,121.18,119.49607232]
[1741617371370,11.12834264,121.23,121.22,69.07286059]
[1741617371564,11.12834264,121.23,121.22,50.42321173]
[1741617371793,11.12834264,121.23,121.22,69.07286059]
[1741617371794,7.26914264,121.23,121.22,69.07286059]
[1741617371992,0.063,121.26,121.25,20.0]
[1741617372195,0.063,121.26,121.14,43.2735]
[1741617372394,0.14216157,121.24,121.1,8.2576]
[1741617372565,0.14216157,121.22,121.1,8.2576]
[1741617372893,50.42321173,121.17,121.1,50.42321173]
[1741617373070,50.42321173,121.16,121.1,50.42321173]
[1741617373389,65.66321173,121.19,121.13,50.42321173]
[1741617373564,50.42321173,121.19,121.13,50.42321173]
[1741617373964,50.42321173,121.2,121.14,50.42321173]
[1741617374188,65.68321173,121.21,121.15,50.42321173]
[1741617374380,50.42321173,121.16,121.03,2.0]
[1741617374580,50.42321173,121.16,120.98,72.70521547]
[1741617374581,0.14216157,121.15,121.0,50.0]
[1741617374792,0.14216157,121.13,121.03,20.0]
[1741617375082,15.28,121.14,121.04,20.0]
[1741617375262,0.14216157,121.15,121.05,8.261]
[1741617375463,15.26,121.16,121.03,28.9179]
[1741617375664,15.26,121.16,121.08,50.42321173]
[1741617375976,50.42321173,121.14,121.08,50.42321173]
[1741617376167,0.14216157,121.18,121.04,2.14216157]
[1741617376484,23.5908,121.21,121.09,18.64964886]
[1741617376682,15.34,121.21,121.13,18.64964886]
[1741617376995,0.14216157,121.2,121.07,15.36]
[1741617377311,0.14216157,121.18,121.06,20.0]
[1741617377473,0.14216157,121.15,121.03,8.2619]
[1741617377675,50.42321173,121.12,121.05,50.42321173]
[1741617377983,50.5653733,121.13,121.07,50.42321173]
[1741617378179,0.14216157,121.18,121.04,2.0]
[1741617378388,0.14216157,121.18,121.05,0.14216157]
[1741617378576,50.42321173,121.17,121.11,50.42321173]
[1741617378775,15.44,121.19,121.14,50.42321173]
[1741617378991,50.42321173,121.17,121.11,50.42321173]
[1741617379190,50.42321173,121.17,121.09,8.2583]
[1741617379373,15.44,121.19,121.11,50.42321173]
[1741617379688,50.42321173,121.21,121.11,38.64964886]
[1741617379994,50.42321173,121.2,121.11,38.64964886]
[1741617380283,0.14216157,121.23,121.11,20.0]
[1741617380485,50.42321173,121.21,121.15,50.42321173]
[1741617380690,196.62,121.24,121.17,50.42321173]
[1741617380987,247.04321173,121.24,121.18,50.42321173]
[1741617381196,0.14216157,121.23,121.15,50.42321173]
[1741617381402,50.42321173,121.23,121.17,50.42321173]
[1741617381582,50.42321173,121.21,121.12,18.64964886]
[1741617381778,50.42321173,121.18,121.09,28.9041]
[1741617381980,50.42321173,121.17,121.12,50.42321173]
[1741617382177,204.8681,121.24,121.09,8.2583]
[1741617382178,50.42321173,121.15,121.09,58.68151173]
[1741617382377,50.42321173,121.15,121.06,20.6497]
[1741617382585,15.54,121.2,121.12,50.42321173]
[1741617382900,15.54,121.2,121.13,50.42321173]
[1741617383204,50.42321173,121.19,121.13,50.42321173]
[1741617383397,50.42321173,121.2,121.14,50.42321173]
[1741617384020,247.04321173,121.24,121.18,50.42321173]
[1741617384303,0.063,121.26,121.22,50.42321173]
[1741617384829,0.063,121.26,121.24,50.42321173]
[1741617384991,0.063,121.26,121.25,50.42321173]
[1741617385309,0.063,121.37,121.26,18.64964886]
[1741617385475,0.063,121.37,121.32,50.42321173]
[1741617385676,0.063,121.37,121.31,18.64964886]
[1741617386095,0.063,121.37,121.32,0.14216157]
[1741617386294,0.063,121.37,121.33,18.64964886]
[1741617386485,0.063,121.37,121.35,50.42321173]
[1741617386701,0.063,121.39,121.36,69.07286059]
[1741617386881,0.063,121.39,121.38,50.42321173]
[1741617387081,0.063,121.39,121.38,69.07286059]
[1741617387292,0.0001,121.39,121.38,77.31136059]
[1741617387805,196.64,121.54,121.42,20.0]
[1741617388107,50.42321173,121.52,121.46,50.42321173]
[1741617388408,50.42321173,121.5,121.44,50.42321173]
[1741617388626,196.64,121.54,121.42,18.64964886]
[1741617388792,50.42321173,121.5,121.44,50.42321173]
[1741617388995,50.42321173,121.55,121.49,50.42321173]
[1741617389299,50.42321173,121.55,121.42,0.14216157]
[1741617389300,28.227,121.55,121.43,18.64964886]
[1741617389500,28.227,121.55,121.43,50.42321173]
[1741617389501,34.27181043,121.54,121.43,50.42321173]
[1741617389809,34.27181043,121.54,121.42,8.2358]
[1741617389810,50.42321173,121.49,121.42,8.2358]
[1741617390003,8.227,121.55,121.46,50.42321173]
[1741617390209,41.60514886,121.62,121.51,50.42321173]
[1741617390401,41.60514886,121.62,121.46,18.64964886]
[1741617390402,7.4555,121.62,121.49,18.64964886]
[1741617390604,0.063,121.62,121.52,20.0]
[1741617390812,8.2856,121.62,121.54,50.42321173]
[1741617391010,0.063,121.62,121.53,18.64964886]
[1741617391195,50.48621173,121.62,121.56,50.42321173]
[1741617391391,50.42321173,121.59,121.53,50.42321173]
[1741617391701,50.42321173,121.58,121.48,47.46094886]
[1741617391901,0.14216157,121.61,121.48,47.46094886]
[1741617391902,50.42321173,121.57,121.51,50.42321173]
[1741617392099,58.70861173,121.62,121.54,50.42321173]
[1741617392289,0.063,121.62,121.57,50.42321173]
[1741617392489,50.48621173,121.62,121.56,50.42321173]
[1741617392694,50.42321173,121.59,121.49,18.64964886]
[1741617392913,70.42321173,121.59,121.53,50.42321173]
[1741617393125,20.0,121.59,121.48,8.2318]
[1741617393329,50.39847173,121.53,121.45,8.2338]
[1741617393499,0.14216157,121.58,121.45,28.8184]
[1741617393500,50.42321173,121.54,121.45,28.8184]
[1741617393696,50.42321173,121.51,121.46,50.42321173]
[1741617394112,0.14216157,121.54,121.45,50.42321173]
[1741617394294,196.3,121.58,121.47,50.42321173]
[1741617394621,20.0,121.56,121.44,18.64964886]
[1741617394861,50.42321173,121.56,121.47,50.42321173]
[1741617395027,70.42321173,121.56,121.5,50.42321173]
[1741617395325,8.223,121.61,121.53,50.42321173]
[1741617395505,50.42321173,121.59,121.53,50.42321173]
[1741617395706,0.14216157,121.6,121.51,50.42321173]
[1741617395911,20.0,121.58,121.5,50.42321173]
[1741617396124,50.42321173,121.54,121.49,50.42321173]
[1741617396312,50.42321173,121.56,121.46,50.42321173]
[1741617396633,20.0,121.57,121.46,50.42321173]
[1741617396830,15.58,121.58,121.42,8.2358]
[1741617396831,20.0,121.52,121.42,8.2358]
[1741617397017,50.42321173,121.45,121.4,0.03]
[1741617397211,15.58,121.51,121.43,50.42321173]
[1741617397406,50.42321173,121.47,121.4,0.03]
[1741617397608,20.0,121.47,121.4,0.03]
[1741617397810,28.8044,121.51,121.4,0.03]
[1741617398032,70.42321173,121.51,121.45,50.42321173]
[1741617398242,50.42321173,121.5,121.44,50.42321173]
[1741617398531,20.0,121.5,121.44,50.42321173]
[1741617398833,23.1604,121.55,121.41,18.64964886]
[1741617398834,31.3879,121.55,121.49,0.03]
[1741617399036,50.42321173,121.56,121.5,50.42321173]
[1741617399223,50.42321173,121.56,121.49,0.03]
[1741617399224,8.2244,121.59,121.49,0.03]
[1741617399436,0.063,121.62,121.57,50.42321173]
[1741617399607,8.2854,121.62,121.49,0.03]
[1741617399942,50.42321173,121.59,121.53,50.42321173]
[1741617400109,50.42321173,121.61,121.51,0.14216157]
[1741617400436,8.2853,121.62,121.51,18.64964886]
[1741617400601,50.42321173,121.58,121.52,50.42321173]
[1741617400808,8.2853,121.62,121.52,50.42321173]
[1741617401007,0.063,121.62,121.52,0.14216157]
[1741617401230,0.063,121.62,121.5,18.79181043]
[1741617401427,0.063,121.62,121.51,28.8041]
[1741617401617,0.063,121.62,121.51,8.2297]
[1741617401821,0.063,121.62,121.52,18.64964886]
[1741617402023,0.063,121.62,121.57,50.42321173]
[1741617402226,0.063,121.62,121.59,50.42321173]
[1741617402729,50.48621173,121.62,121.53,18.64964886]
[1741617402926,0.063,121.62,121.52,18.64964886]
[1741617403141,0.063,121.62,121.57,50.42321173]
[1741617403345,0.063,121.62,121.59,58.64751173]
[1741617403504,50.48621173,121.62,121.54,18.64964886]
[1741617403720,0.063,121.62,121.59,50.42321173]
[1741617403926,0.063,121.62,121.6,50.42321173]
[1741617404129,0.063,121.62,121.54,18.64964886]
[1741617404331,0.063,121.62,121.52,8.229]
[1741617404530,0.20516157,121.62,121.52,8.229]
[1741617404736,0.20516157,121.62,121.52,58.65221173]
[1741617404737,50.6283733,121.62,121.52,58.65221173]
[1741617404924,0.063,121.62,121.52,28.8017]
[1741617405140,50.48621173,121.62,121.56,50.42321173]
[1741617405341,50.48621173,121.62,121.53,50.42321173]
[1741617405342,8.223,121.61,121.53,50.42321173]
[1741617405641,0.063,121.62,121.59,50.42321173]
[1741617405843,0.063,121.62,121.55,18.64964886]
[1741617406027,0.063,121.62,121.57,18.64964886]
[1741617406227,0.063,121.62,121.61,18.64964886]
[1741617406623,0.0001,121.62,121.61,18.933972]
[1741617406823,0.063,121.67,121.62,0.28432314]
[1741617407023,0.063,121.67,121.66,50.42321173]
[1741617407426,0.063,121.67,121.66,58.64281173]
[1741617407943,0.063,121.67,121.66,50.42321173]
[1741617408338,0.063,121.67,121.66,69.07286059]
[1741617408544,0.0001,121.67,121.66,69.07286059]
[1741617409142,0.0001,121.67,121.64,8.2209]
[1741617409335,0.0001,121.67,121.66,77.29246059]
[1741617409536,0.0001,121.67,121.66,58.64281173]
[1741617409752,0.0001,121.67,121.66,50.42321173]
[1741617409934,0.0001,121.67,121.63,8.2216]
[1741617410138,0.0001,121.67,121.57,41.1254]
[1741617410324,50.42321173,121.63,121.57,50.42321173]
[1741617410531,50.42321173,121.6,121.54,50.42321173]
[1741617413530,50.42321173,121.65,121.59,58.64751173]
[1741617413723,50.42321173,121.65,121.59,50.42321173]
[1741617414042,50.42321173,121.64,121.58,50.42321173]
[1741617414434,50.42321173,121.62,121.54,8.2277]
[1741617414649,50.42321173,121.61,121.55,50.42321173]
[1741617415048,50.42321173,121.59,121.53,50.42321173]
[1741617415235,50.42321173,121.62,121.51,28.8041]
[1741617415236,50.42321173,121.58,121.51,28.8041]
[1741617415433,50.42321173,121.59,121.53,50.42321173]
[1741617415646,50.42321173,121.59,121.54,50.42321173]
[1741617415950,50.42321173,121.61,121.55,50.42321173]
[1741617416154,50.42321173,121.62,121.51,28.8041]
[1741617416451,0.14216157,121.63,121.55,50.42321173]
[1741617416452,50.42321173,121.61,121.55,50.42321173]
[1741617416651,50.42321173,121.61,121.51,26.87934886]
[1741617416652,195.98,121.65,121.52,20.16778454]
[1741617416953,15.56,121.68,121.56,18.64964886]
[1741617417132,0.14216157,121.71,121.56,18.64964886]
[1741617417332,26.86654886,121.7,121.57,8.2257]
[1741617417526,18.64964886,121.68,121.57,8.2257]
[1741617417739,50.42321173,121.62,121.57,8.2257]
[1741617417936,20.0,121.65,121.57,58.64891173]
[1741617418243,50.42321173,121.65,121.59,50.42321173]
[1741617418439,50.42321173,121.65,121.57,28.7899]
[1741617418440,65.94321173,121.66,121.6,50.42321173]
[1741617418631,15.52,121.66,121.61,50.42321173]
[1741617418836,0.0001,121.67,121.62,50.42321173]
[1741617419134,50.42321173,121.64,121.58,50.42321173]
[1741617419335,8.2196,121.66,121.56,50.42321173]
[1741617419733,50.42321173,121.62,121.56,50.42321173]
[1741617420252,50.42321173,121.58,121.53,8.2284]
[1741617420432,50.42321173,121.56,121.49,0.03]
[1741617420631,50.42321173,121.55,121.5,8.2304]
[1741617420871,7.8502,121.61,121.53,50.42321173]
[1741617421073,18.79181043,121.6,121.49,8.2609]
[1741617421373,0.14216157,121.53,121.49,0.03]
[1741617421540,35.54216157,121.53,121.49,0.03]
[1741617421734,50.42321173,121.5,121.49,0.03]
[1741617421961,50.42321173,121.51,121.49,0.03]
[1741617422162,50.42321173,121.5,121.49,0.03]
[1741617422457,20.5624,121.59,121.49,0.03]
[1741617422664,15.38,121.6,121.49,0.03]
[1741617422835,250.12431173,121.62,121.52,20.0]
[1741617422836,199.7011,121.62,121.52,20.0]
[1741617423032,199.7011,121.62,121.5,0.14216157]
[1741617423234,195.96,121.62,121.53,18.64964886]
[1741617423458,195.96,121.62,121.54,28.797]
[1741617423639,15.38,121.65,121.55,18.79181043]
[1741617423967,50.42321173,121.62,121.54,28.797]
[1741617424141,50.42321173,121.65,121.59,50.42321173]
[1741617424349,0.0001,121.67,121.58,18.64964886]
[1741617424658,0.0001,121.67,121.61,18.64964886]
[1741617424835,0.0001,121.67,121.65,18.64964886]
[1741617425150,0.0001,121.67,121.63,18.64964886]
[1741617425352,0.0001,121.67,121.6,0.14216157]
[1741617425353,0.0001,121.67,121.6,18.79181043]
[1741617425554,0.0001,121.67,121.62,18.933972]
[1741617425752,0.0001,121.67,121.66,119.78039546]
[1741617425962,15.38,121.77,121.66,69.07286059]
[1741617426138,50.42321173,121.71,121.65,50.42321173]
[1741617426340,50.42321173,121.73,121.67,50.42321173]
[1741617426539,0.14216157,121.74,121.65,50.42321173]
[1741617426770,20.14216157,121.7,121.56,50.42321173]
[1741617426944,203.7977,121.73,121.59,0.28432314]
[1741617427143,195.98,121.73,121.65,20.0]
[1741617427346,0.063,121.75,121.66,18.79181043]
[1741617427542,0.063,121.75,121.71,20.0]
[1741617427738,0.063,121.75,121.74,50.42321173]
[1741617427983,0.063,121.75,121.74,119.63823389]
[1741617428266,0.063,121.75,121.74,50.42321173]
[1741617428446,50.48621173,121.75,121.67,8.2189]
[1741617428640,20.063,121.75,121.63,8.2216]
[1741617428876,0.063,121.75,121.64,0.28432314]
[1741617429182,0.063,121.75,121.7,0.14216157]
[1741617429349,0.063,121.75,121.74,18.79181043]
[1741617429547,0.063,121.8,121.75,0.14216157]
[1741617429909,0.063,121.8,121.79,100.84642346]
[1741617430062,0.063,121.8,121.79,50.42321173]
[1741617431168,0.063,121.8,121.74,58.63731173]
[1741617431365,0.063,121.8,121.79,50.42321173]
[1741617431764,0.063,121.8,121.79,77.42582216]
[1741617431955,12.1635,121.91,121.8,18.79181043]
[1741617432168,231.8276,121.93,121.9,50.42321173]
[1741617432169,0.063,121.93,121.9,50.42321173]
[1741617432341,0.063,121.93,121.91,50.42321173]
[1741617432767,0.063,121.93,121.92,100.84642346]
[1741617432963,8.1953,122.02,121.93,18.64964886]
[1741617433170,54.31781173,122.03,121.97,50.42321173]
[1741617433341,50.42321173,122.01,121.96,50.42321173]
[1741617433546,8.1953,122.02,121.93,8.2014]
[1741617433758,50.42321173,121.96,121.88,8.2047]
[1741617434079,28.6837,122.02,121.88,28.08453548]
[1741617434284,8.192,122.07,121.95,20.0]
[1741617434477,0.063,122.08,122.04,50.42321173]
[1741617434680,58.67761173,122.08,122.02,50.42321173]
[1741617434885,58.67761173,122.08,121.92,2.0]
[1741617434886,15.58216157,122.07,121.88,71.7405]
[1741617435059,20.0,122.03,121.97,50.42321173]
[1741617435376,195.8,122.06,122.0,50.42321173]
[1741617435585,0.063,122.08,121.99,8.1972]
[1741617435781,0.063,122.08,122.0,18.64964886]
[1741617435963,0.063,122.08,122.06,50.42321173]
[1741617436165,0.063,122.08,122.07,50.42321173]
[1741617436680,0.063,122.08,122.07,69.21502216]
[1741617436884,0.063,122.14,122.08,0.14216157]
[1741617437091,0.063,122.14,122.13,50.42321173]
[1741617437584,0.063,122.15,122.14,18.933972]
[1741617437883,50.42321173,122.27,122.19,50.42321173]
[1741617438089,203.3508,122.3,122.19,50.42321173]
[1741617438090,40.93101623,122.32,122.22,50.0]
[1741617438292,50.42321173,122.31,122.22,50.42321173]
[1741617438466,50.42321173,122.31,122.25,50.42321173]
[1741617438781,48.66866637,122.33,122.16,50.42321173]
[1741617438980,50.42321173,122.25,122.17,18.64964886]
[1741617439190,0.14216157,122.28,122.2,50.42321173]
[1741617439374,50.42321173,122.23,122.18,50.42321173]
[1741617439584,50.42321173,122.21,122.12,26.83824886]
[1741617439756,50.42321173,122.19,122.13,50.42321173]
[1741617439954,15.94,122.22,122.1,18.933972]
[1741617440177,206.8021,122.27,122.21,50.42321173]
[1741617440486,48.66926637,122.33,122.17,18.79181043]
[1741617440697,50.42321173,122.27,122.17,18.64964886]
[1741617440866,20.0,122.28,122.21,50.42321173]
[1741617441068,50.42321173,122.28,122.22,50.42321173]
[1741617441273,50.42321173,122.25,122.19,50.42321173]
[1741617441471,50.42321173,122.29,122.23,50.42321173]
[1741617441688,20.0,122.26,122.14,8.1873]
[1741617441890,50.42321173,122.24,122.18,50.42321173]
[1741617442096,18.64964886,122.29,122.14,8.1873]
[1741617442097,50.42321173,122.25,122.14,8.1873]
[1741617442295,50.42321173,122.25,122.12,51.07077203]
[1741617442296,20.0,122.22,122.12,12.42112317]
[1741617442592,50.42321173,122.18,122.12,62.8443349]
[1741617442902,7.53537247,122.22,122.15,50.42321173]
[1741617443070,50.42321173,122.24,122.15,0.14216157]
[1741617443403,8.1761,122.31,122.23,50.42321173]
[1741617443603,8.1761,122.31,122.22,50.42321173]
[1741617443604,8.1759,122.31,122.22,50.42321173]
[1741617443778,50.42321173,122.29,122.18,18.64964886]
[1741617444092,18.64964886,122.31,122.2,50.42321173]
[1741617444402,0.14216157,122.27,122.11,8.1893]
[1741617444609,50.42321173,122.2,122.11,8.1893]
[1741617444771,16.18,122.25,122.12,0.28432314]
[1741617444968,16.18,122.25,122.16,50.42321173]
[1741617445208,50.42321173,122.22,122.16,50.42321173]
[1741617445381,50.42321173,122.21,122.15,50.42321173]
[1741617445578,50.42321173,122.21,122.16,50.42321173]
[1741617445890,50.42321173,122.21,122.11,20.4733]
[1741617445891,50.42321173,122.21,122.15,50.42321173]
[1741617446080,50.42321173,122.2,122.14,50.42321173]
[1741617446285,50.42321173,122.19,122.13,50.42321173]
[1741617446486,50.42321173,122.19,122.14,50.42321173]
[1741617446670,195.18,122.22,122.15,50.42321173]
[1741617446870,195.18,122.22,122.18,50.42321173]
[1741617447099,245.60321173,122.22,122.16,50.42321173]
[1741617447309,18.79181043,122.21,122.13,50.42321173]
[1741617447604,195.18,122.22,122.12,18.64964886]
[1741617447775,0.14216157,122.28,122.15,20.0]
[1741617447977,8.1779,122.28,122.15,20.0]
[1741617448210,50.42321173,122.31,122.19,20.0]
[1741617448501,50.42321173,122.29,122.23,50.42321173]
[1741617448710,0.063,122.33,122.27,50.42321173]
[1741617448913,0.063,122.33,122.25,18.933972]
[1741617449117,0.063,122.33,122.32,50.42321173]
[1741617449297,0.063,122.33,122.31,50.42321173]
[1741617449707,0.063,122.33,122.3,50.42321173]
[1741617449885,0.063,122.33,122.29,50.42321173]
[1741617450089,0.063,122.33,122.25,18.79181043]
[1741617450420,0.063,122.33,122.29,18.79181043]
[1741617450722,0.0001,122.33,122.32,120.84642346]
[1741617451007,0.0001,122.33,122.32,89.21502216]
[1741617451210,0.0001,122.33,122.32,139.63823389]
[1741617451584,6.488e-05,122.35,122.33,18.933972]
[1741617451784,0.063,122.46,122.37,18.64964886]
[1741617451992,50.48621173,122.46,122.37,19.8746916]
[1741617452210,0.063,122.46,122.41,50.42321173]
[1741617452596,0.063,122.46,122.43,50.42321173]
[1741617452797,0.063,122.46,122.45,50.42321173]
[1741617453517,0.063,122.46,122.4,8.1699]
[1741617453725,0.063,122.46,122.45,50.42321173]
[1741617454024,0.0001,122.48,122.47,20.0]
[1741617454199,0.0001,122.51,122.48,18.933972]
[1741617454389,0.0001,122.51,122.5,139.78039546]
[1741617454584,0.0001,122.51,122.47,0.14216157]
[1741617454938,0.0001,122.51,122.45,194.92]
[1741617455092,0.0001,122.51,122.47,20.0]
[1741617455423,0.0001,122.51,122.45,20.0]
[1741617455589,0.0001,122.51,122.47,50.42321173]
[1741617455798,50.42321173,122.58,122.41,18.08440972]
[1741617455799,235.27830897,122.59,122.42,8.1685]
[1741617456090,18.79181043,122.58,122.45,18.64964886]
[1741617456303,58.73275197,122.58,122.48,50.42321173]
[1741617456510,50.42321173,122.56,122.46,20.0]
[1741617456722,0.14216157,122.59,122.53,50.42321173]
[1741617456927,57.31354513,122.6,122.49,18.79181043]
[1741617457131,6.8903334,122.6,122.55,50.42321173]
[1741617457308,3.0695334,122.6,122.59,50.42321173]
[1741617457513,3.0695334,122.6,122.59,58.58041173]
[1741617457910,3.0695334,122.6,122.54,20.4007]
[1741617458111,3.0695334,122.6,122.55,8.1599]
[1741617458533,8.29416157,122.67,122.55,28.5597]
[1741617458736,0.14216157,122.63,122.53,8.1612]
[1741617458942,18.79181043,122.63,122.53,8.1612]
[1741617459108,20.0,122.64,122.57,50.42321173]
[1741617459432,50.5653733,122.66,122.6,50.42321173]
[1741617459840,50.42321173,122.62,122.5,20.0]
[1741617460042,50.42321173,122.59,122.51,8.1625]
[1741617460210,2.0,122.66,122.53,50.42321173]
[1741617460211,20.0,122.6,122.53,50.42321173]
[1741617460542,50.42321173,122.58,122.53,50.42321173]
[1741617460838,50.5653733,122.54,122.48,50.42321173]
[1741617461034,50.5653733,122.52,122.46,50.42321173]
[1741617461205,0.14216157,122.5,122.41,8.1692]
[1741617461405,50.42321173,122.45,122.39,50.42321173]
[1741617461705,18.79181043,122.43,122.34,30.452458]